bitfinex/quotes_BTCUSD_20250417
["timestamp","ask_amount","ask_price","bid_price","bid_amount"]
[1744868140692,1e-08,84374.0,84373.0,0.63367361]
[1744868142363,1e-08,84374.0,84373.0,0.63967361]
[1744868142761,1e-08,84374.0,84373.0,0.65066949]
[1744868143064,1e-08,84374.0,84373.0,0.65566949]
[1744868144085,8e-05,84381.0,84373.0,0.65566949]
[1744868144086,1e-08,84379.0,84378.0,0.59156945]
[1744868144313,1e-08,84379.0,84378.0,0.71101736]
[1744868144642,1e-08,84379.0,84378.0,0.74405809]
[1744868144800,1e-08,84379.0,84378.0,1.16285809]
[1744868145957,1e-08,84379.0,84378.0,1.16685809]
[1744868146309,1e-08,84379.0,84378.0,1.16285809]
[1744868146514,1e-08,84379.0,84378.0,1.16885809]
[1744868146715,1e-08,84379.0,84378.0,1.17285809]
[1744868147733,1e-08,84379.0,84378.0,1.16186221]
[1744868151144,1e-08,84379.0,84378.0,1.29950221]
[1744868151893,1e-08,84379.0,84378.0,0.28913276]
[1744868151894,0.28542581,84379.0,84378.0,0.28913276]
[1744868152105,0.30103197,84379.0,84378.0,0.02804485]
[1744868152508,0.30103197,84379.0,84378.0,0.02604485]
[1744868152688,0.30103197,84379.0,84378.0,0.004]
[1744868152889,0.30103197,84379.0,84378.0,0.005]
[1744868153090,0.30103197,84379.0,84375.0,0.13764]
[1744868153091,0.28543422,84376.0,84375.0,0.13764]
[1744868153292,0.30099851,84376.0,84375.0,0.13764]
[1744868154518,0.0485,84368.0,84364.0,0.03185339]
[1744868154789,0.01546931,84367.0,84364.0,0.03185339]
[1744868155192,0.0485,84368.0,84364.0,0.03185339]
[1744868155520,0.0485,84368.0,84367.0,0.23705951]
[1744868155892,0.0485,84368.0,84365.0,0.24891727]
[1744868156097,0.0485,84368.0,84366.0,1.113]
[1744868156439,0.0485,84368.0,84366.0,1.109]
[1744868156806,0.0485,84368.0,84367.0,0.002]
[1744868158186,0.0485,84368.0,84367.0,0.001]
[1744868158381,0.0485,84368.0,84367.0,0.23705951]
[1744868158815,0.0485,84368.0,84367.0,0.23805951]
[1744868159369,0.0485,84368.0,84367.0,0.23905951]
[1744868160891,0.0485,84368.0,84367.0,0.002]
[1744868161098,0.0639686,84368.0,84367.0,0.23905951]
[1744868161712,0.0955,84368.0,84367.0,0.002]
[1744868161989,0.1109393,84368.0,84367.0,0.002]
[1744868162534,0.24891248,84367.0,84364.0,0.15736]
[1744868162721,0.01541227,84366.0,84364.0,0.15736]
[1744868163338,0.23706513,84365.0,84364.0,0.15736]
[1744868163540,0.25248141,84365.0,84364.0,0.15736]
[1744868164628,0.25248141,84365.0,84364.0,0.15836]
[1744868165139,0.25248141,84365.0,84364.0,0.15736]
[1744868165287,0.25248141,84365.0,84364.0,0.15836]
[1744868170406,0.01541628,84365.0,84364.0,0.021]
[1744868170828,0.06025171,84376.0,84372.0,0.01185227]
[1744868171454,0.01185199,84374.0,84370.0,0.01185255]
[1744868171653,0.01534913,84375.0,84374.0,0.23703984]
[1744868171963,0.01534913,84375.0,84372.0,0.01185227]
[1744868171964,0.01185157,84377.0,84373.0,0.01185213]
[1744868172219,0.01185185,84375.0,84372.0,0.01185227]
[1744868172916,0.01282788,84374.0,84372.0,0.01185227]
[1744868173290,0.02467987,84374.0,84370.0,0.01185255]
[1744868177752,0.01185227,84372.0,84369.0,0.24890606]
[1744868178280,0.01167546,84371.0,84369.0,0.24890606]
[1744868178815,0.01167546,84371.0,84370.0,0.02199719]
[1744868180789,0.01185213,84373.0,84370.0,0.02199719]
[1744868181006,0.01185213,84373.0,84371.0,0.01101245]
[1744868181161,0.01167346,84372.0,84371.0,0.03300964]
[1744868181566,0.01167346,84372.0,84371.0,0.27005791]
[1744868181827,0.01185199,84374.0,84371.0,0.03300964]
[1744868181947,0.01167175,84372.0,84371.0,0.03300964]
[1744868182143,0.01185199,84374.0,84371.0,0.03300964]
[1744868182379,0.00988571,84373.0,84372.0,0.02199719]
[1744868185333,0.24692836,84373.0,84372.0,0.02199719]
[1744868185943,0.29652836,84373.0,84372.0,0.02199719]
[1744868186236,0.29652836,84373.0,84372.0,0.01101245]
[1744868187277,0.23704827,84371.0,84370.0,0.01101245]
[1744868187663,0.24529788,84371.0,84370.0,0.01101245]
[1744868188729,0.24529788,84371.0,84369.0,0.1374]
[1744868190365,0.24529788,84371.0,84369.0,0.1384]
[1744868190915,0.24529788,84371.0,84364.0,0.02]
[1744868190916,0.23706513,84365.0,84364.0,0.02]
[1744868191288,0.24529837,84365.0,84364.0,0.02]
[1744868193707,0.24529837,84365.0,84364.0,0.021]
[1744868195798,0.24329837,84365.0,84364.0,0.021]
[1744868197038,0.22829837,84365.0,84364.0,0.021]
[1744868203961,0.00823324,84365.0,84364.0,0.021]
[1744868204135,0.00823324,84365.0,84364.0,0.14044791]
[1744868204354,0.01185157,84377.0,84372.0,0.01185227]
[1744868204839,0.00684513,84376.0,84373.0,0.01185213]
[1744868205043,0.00684513,84376.0,84373.0,0.24889478]
[1744868205241,0.01185143,84378.0,84374.0,0.01185199]
[1744868205388,0.00684914,84375.0,84373.0,0.24889478]
[1744868205745,0.01185157,84377.0,84373.0,0.01185213]
[1744868206046,1e-08,84379.0,84377.0,0.23703053]
[1744868206275,1e-08,84379.0,84373.0,0.01185213]
[1744868206276,0.00687019,84376.0,84373.0,0.01185213]
[1744868206400,0.01185157,84377.0,84373.0,0.24889401]
[1744868206608,0.00686418,84375.0,84373.0,0.24889401]
[1744868206807,1e-08,84379.0,84377.0,0.23703002]
[1744868207282,1e-08,84379.0,84376.0,0.01185171]
[1744868207874,1e-08,84379.0,84377.0,0.01101556]
[1744868208659,1e-08,84379.0,84377.0,0.24804661]
[1744868209201,1e-08,84379.0,84378.0,0.01101556]
[1744868209337,1e-08,84379.0,84378.0,0.03304001]
[1744868209763,1e-08,84379.0,84378.0,0.15248792]
[1744868211405,1e-08,84379.0,84378.0,0.15348792]
[1744868212170,1e-08,84379.0,84378.0,0.13146347]
[1744868215332,1e-08,84379.0,84378.0,0.01201556]
[1744868217769,0.00929377,84379.0,84378.0,0.01201556]
[1744868217914,1e-08,84379.0,84378.0,0.01201556]
[1744868218121,0.00929377,84379.0,84378.0,0.001]
[1744868218304,1e-08,84379.0,84378.0,0.001]
[1744868218509,0.00929377,84379.0,84378.0,0.001]
[1744868218710,1e-08,84379.0,84378.0,0.001]
[1744868218918,0.00929377,84379.0,84378.0,0.001]
[1744868229422,0.00929377,84379.0,84378.0,0.02303555]
[1744868230091,0.00929377,84379.0,84378.0,0.03405328]
[1744868231010,0.00929377,84379.0,84378.0,0.01201773]
[1744868237193,0.00929377,84379.0,84378.0,0.03409225]
[1744868239661,0.00929377,84379.0,84378.0,0.01201773]
[1744868240065,0.00929377,84379.0,84378.0,0.001]
[1744868241913,0.01185227,84372.0,84369.0,0.1382]
[1744868242353,0.00919348,84371.0,84369.0,0.1382]
[1744868242582,0.00919348,84371.0,84370.0,0.01104054]
[1744868242718,0.01185227,84372.0,84370.0,0.01104054]
[1744868243155,0.00918947,84371.0,84369.0,0.001]
[1744868243629,0.02104188,84371.0,84368.0,0.01185283]
[1744868244185,0.01185269,84369.0,84366.0,0.1382]
[1744868244406,0.01008789,84368.0,84366.0,0.15005311]
[1744868245754,0.01008789,84368.0,84366.0,0.15105311]
[1744868245960,0.01008789,84368.0,84366.0,0.1392]
[1744868246166,0.24714736,84368.0,84366.0,0.1392]
[1744868247252,0.01008789,84368.0,84366.0,0.1392]
[1744868247594,0.01008789,84368.0,84366.0,0.1402]
[1744868250734,0.24714701,84368.0,84366.0,0.1402]
[1744868251683,0.24714701,84368.0,84366.0,0.002]
[1744868280902,0.24714459,84368.0,84366.0,0.002]
[1744868283647,0.24714459,84368.0,84366.0,0.00232]
[1744868289963,0.01008789,84368.0,84366.0,0.00232]
[1744868290365,0.24890683,84369.0,84366.0,0.00232]
[1744868290545,0.00989262,84367.0,84366.0,0.00232]
[1744868290746,0.23705951,84367.0,84366.0,0.00232]
[1744868290964,0.00958833,84367.0,84366.0,0.00232]
[1744868291306,0.00958833,84367.0,84366.0,0.00032]
[1744868291722,0.00958833,84367.0,84366.0,0.00232]
[1744868292075,0.00958833,84367.0,84366.0,0.00132]
[1744868292883,0.00958833,84367.0,84366.0,0.00232]
[1744868296239,0.24890663,84369.0,84366.0,0.00232]
[1744868296468,0.00958833,84368.0,84366.0,0.00232]
[1744868297382,0.24664775,84368.0,84366.0,0.00232]
[1744868297881,0.24664775,84368.0,84366.0,0.00132]
[1744868298035,0.24664775,84368.0,84366.0,0.00232]
[1744868298235,0.24664775,84368.0,84366.0,0.00132]
[1744868298846,0.24664775,84368.0,84366.0,0.00232]
[1744868323091,0.00958833,84368.0,84366.0,0.00232]
[1744868323266,0.00958833,84368.0,84367.0,0.0478]
[1744868323486,0.01185255,84370.0,84367.0,0.05965297]
[1744868323727,0.00949394,84368.0,84367.0,0.05965297]
[1744868323904,0.01185255,84370.0,84367.0,0.05965297]
[1744868324202,0.00949394,84368.0,84367.0,0.05965297]
[1744868324411,0.01185255,84370.0,84367.0,0.05965297]
[1744868324616,0.00949394,84368.0,84367.0,0.06065297]
[1744868324824,0.01185255,84370.0,84367.0,0.06065297]
[1744868324973,0.00949394,84368.0,84367.0,0.06065297]
[1744868325167,0.01185255,84370.0,84367.0,0.06065297]
[1744868325374,0.00949394,84368.0,84367.0,0.06065297]
[1744868325581,0.01185227,84372.0,84368.0,0.01185283]
[1744868326677,0.01185143,84378.0,84374.0,0.01185199]
[1744868326877,0.01185114,84380.0,84374.0,0.01185199]
[1744868327082,0.24888342,84377.0,84372.0,0.01185227]
[1744868327864,0.01185185,84375.0,84372.0,0.01185227]
[1744868329136,0.01185199,84374.0,84370.0,0.01185255]
[1744868329355,0.01185227,84372.0,84368.0,0.01185283]
[1744868329544,0.01185227,84372.0,84369.0,0.01185269]
[1744868329752,0.01185241,84371.0,84367.0,0.0478]
[1744868329886,0.01185227,84372.0,84368.0,0.2370567]
[1744868330086,0.01185227,84372.0,84369.0,0.01185269]
[1744868332644,0.01185227,84372.0,84369.0,0.01285269]
[1744868333388,0.01185213,84373.0,84370.0,0.01185255]
[1744868336098,0.24889453,84374.0,84370.0,0.01185255]
[1744868337830,0.02138229,84373.0,84369.0,0.01185269]
[1744868338413,0.23705951,84367.0,84366.0,0.13828]
[1744868338581,0.01185269,84369.0,84366.0,0.00032]
[1744868338780,0.00952444,84368.0,84366.0,0.00032]
[1744868339608,0.00952444,84368.0,84366.0,0.00132]
[1744868339962,0.00952444,84368.0,84366.0,0.00032]
[1744868340164,0.00952444,84368.0,84366.0,0.00132]
[1744868340363,0.00952444,84368.0,84366.0,0.00232]
[1744868342178,0.01185255,84370.0,84366.0,0.00232]
[1744868342321,0.00952108,84367.0,84366.0,0.00232]
[1744868342521,0.01185269,84369.0,84366.0,0.00232]
[1744868342758,0.00952309,84367.0,84366.0,0.00232]
[1744868342959,0.01185269,84369.0,84366.0,0.02338997]
[1744868343131,0.00952309,84367.0,84366.0,0.02238997]
[1744868343484,0.01185269,84369.0,84366.0,0.02338997]
[1744868343689,0.00952309,84367.0,84366.0,0.00132]
[1744868343892,0.01185269,84369.0,84366.0,0.00132]
[1744868344036,0.00952309,84367.0,84366.0,0.00232]
[1744868344233,0.01185269,84369.0,84366.0,0.00232]
[1744868344439,0.00952309,84367.0,84366.0,0.00232]
[1744868344641,0.01185269,84369.0,84366.0,0.00132]
[1744868344890,0.00952309,84367.0,84366.0,0.00132]
[1744868345058,0.01185255,84370.0,84366.0,0.03524519]
[1744868345277,0.00952309,84367.0,84366.0,0.03524519]
[1744868345472,0.01185269,84369.0,84366.0,0.03424519]
[1744868345694,0.00952309,84367.0,84366.0,0.03524519]
[1744868345842,0.01185269,84369.0,84366.0,0.03524519]
[1744868346046,0.00952309,84367.0,84366.0,0.03424519]
[1744868346310,0.24888917,84375.0,84368.0,0.2370567]
[1744868346507,0.01185213,84373.0,84370.0,0.01185255]
[1744868346853,0.01185213,84373.0,84371.0,0.02207208]
[1744868347258,0.2488974,84373.0,84371.0,0.02207208]
[1744868347453,0.01185227,84372.0,84369.0,0.01185269]
[1744868348138,0.01185227,84372.0,84370.0,0.02207176]
[1744868348522,0.01185227,84372.0,84371.0,0.02207176]
[1744868349548,0.24888003,84378.0,84373.0,0.24889453]
[1744868349733,0.01185157,84377.0,84373.0,0.01185213]
[1744868349935,0.01185157,84377.0,84374.0,0.02207176]
[1744868350151,0.01185157,84377.0,84374.0,0.03310782]
[1744868350435,0.01185157,84377.0,84375.0,0.02207176]
[1744868350653,0.2488857,84377.0,84375.0,0.02207176]
[1744868351052,0.2488857,84377.0,84376.0,0.01103606]
[1744868351235,0.2488857,84377.0,84376.0,0.03310782]
[1744868352881,0.258388,84377.0,84376.0,0.03310782]
[1744868353061,0.258388,84377.0,84376.0,0.01103606]
[1744868354740,0.303888,84377.0,84376.0,0.01103606]
[1744868355528,0.01185255,84370.0,84367.0,0.13712]
[1744868355729,0.2465676,84369.0,84367.0,0.13712]
[1744868356315,0.23705951,84367.0,84366.0,0.00032]
[1744868356654,0.24657522,84367.0,84366.0,0.00032]
[1744868357654,0.24657522,84367.0,84366.0,0.01236194]
[1744868358455,0.24657522,84367.0,84366.0,0.01336194]
[1744868358658,0.24657522,84367.0,84366.0,0.01236194]
[1744868358839,0.24657522,84367.0,84366.0,0.01136194]
[1744868362241,0.00951571,84367.0,84366.0,0.01136194]
[1744868362565,0.01185213,84373.0,84369.0,0.23705389]
[1744868362764,0.00947009,84372.0,84371.0,0.2488986]
[1744868363161,1e-08,84379.0,84378.0,0.2370286]
[1744868363509,1e-08,84379.0,84378.0,0.24807054]
[1744868363675,1e-08,84379.0,84378.0,0.27012291]
[1744868364341,1e-08,84379.0,84378.0,0.27839487]
[1744868365712,1e-08,84379.0,84378.0,0.27939487]
[1744868366235,1e-08,84379.0,84378.0,0.28039487]
[1744868369996,1e-08,84379.0,84378.0,0.39984278]
[1744868370203,1e-08,84379.0,84378.0,0.44764278]
[1744868370405,1e-08,84379.0,84378.0,0.49564278]
[1744868371740,1e-08,84379.0,84378.0,0.49464278]
[1744868371918,1e-08,84379.0,84378.0,0.49364278]
[1744868372091,1e-08,84379.0,84378.0,0.49564278]
[1744868373000,1e-08,84379.0,84378.0,0.51018363]
[1744868374191,1e-08,84379.0,84378.0,0.85018363]
[1744868374989,1e-08,84379.0,84378.0,0.84918363]
[1744868375390,1e-08,84379.0,84378.0,0.85018363]
[1744868375623,1e-08,84379.0,84378.0,0.85518363]
[1744868376459,1e-08,84379.0,84378.0,0.85318363]
[1744868376880,1e-08,84379.0,84378.0,1.27198363]
[1744868377450,1e-08,84379.0,84378.0,1.26698363]
[1744868377821,1e-08,84379.0,84378.0,1.27698363]
[1744868378196,1e-08,84379.0,84378.0,1.27298363]
[1744868378563,1e-08,84379.0,84378.0,1.27698363]
[1744868379543,1e-08,84379.0,84378.0,1.27692418]
[1744868380254,0.01451668,84387.0,84386.0,0.59154698]
[1744868380400,0.01451668,84387.0,84386.0,1.36399489]
[1744868380591,0.01451668,84387.0,84386.0,1.38330879]
[1744868380785,0.01451668,84387.0,84386.0,1.40530171]
[1744868380996,0.01451668,84387.0,84386.0,1.40528992]
[1744868381588,0.01451668,84387.0,84386.0,1.41128992]
[1744868382102,0.01451668,84387.0,84386.0,1.41528992]
[1744868382526,0.01451668,84387.0,84386.0,1.41525796]
[1744868385474,0.01451668,84387.0,84386.0,1.41125796]
[1744868385852,0.01451668,84387.0,84386.0,1.40925796]
[1744868385975,0.01451668,84387.0,84386.0,1.41525796]
[1744868391128,0.0130137,84392.0,84391.0,0.59153294]
[1744868391331,0.0130137,84392.0,84391.0,0.81322085]
[1744868391682,0.0130137,84392.0,84391.0,0.83520198]
[1744868392096,0.0130137,84392.0,84391.0,0.84624392]
[1744868392363,0.0130137,84392.0,84391.0,1.26804392]
[1744868393610,0.0130137,84392.0,84391.0,1.26904392]
[1744868394212,0.0130137,84392.0,84391.0,1.27304392]
[1744868394709,0.0130137,84392.0,84391.0,1.26904392]
[1744868395108,0.0130137,84392.0,84391.0,1.27889129]
[1744868395571,0.0130137,84392.0,84391.0,1.28589129]
[1744868396338,0.0130137,84392.0,84391.0,1.27889129]
[1744868396561,0.0130137,84392.0,84391.0,1.28489129]
[1744868396737,0.0130137,84392.0,84391.0,1.27989129]
[1744868396939,0.0130137,84392.0,84391.0,1.28389129]
[1744868397152,0.0130137,84392.0,84391.0,1.27504392]
[1744868397343,0.0130137,84392.0,84391.0,1.18104392]
[1744868397872,0.0130137,84392.0,84391.0,1.16650307]
[1744868398094,0.0130137,84392.0,84391.0,1.16250307]
[1744868398293,0.0130137,84392.0,84391.0,1.15650307]
[1744868398454,0.0130137,84392.0,84391.0,0.81950307]
[1744868398835,0.0130137,84392.0,84391.0,0.80152194]
[1744868399439,0.0130137,84392.0,84391.0,0.79048]
[1744868399637,0.0130137,84392.0,84391.0,0.78224]
[1744868399814,0.0130137,84392.0,84391.0,0.77924]
[1744868400020,0.0130137,84392.0,84391.0,0.78224]
[1744868400888,0.0130137,84392.0,84391.0,0.79324336]
[1744868401674,0.0130137,84392.0,84391.0,0.82350629]
[1744868402984,0.0130137,84392.0,84391.0,0.40470629]
[1744868406595,0.0130137,84392.0,84391.0,0.41924714]
[1744868408427,0.0130137,84392.0,84391.0,0.55976714]
[1744868408943,0.0130137,84392.0,84391.0,0.97856714]
[1744868411284,0.0130137,84392.0,84391.0,1.31856714]
[1744868419561,0.0130137,84392.0,84391.0,1.30756378]
[1744868421764,0.0130137,84392.0,84391.0,1.14503437]
[1744868422000,0.0130137,84392.0,84391.0,1.28555437]
[1744868422109,0.0130137,84392.0,84391.0,1.14503437]
[1744868422325,0.0130137,84392.0,84391.0,1.28555437]
[1744868428044,0.0130137,84392.0,84391.0,1.27730085]
[1744868429593,0.0130137,84392.0,84391.0,1.29932235]
[1744868430125,0.013466,84392.0,84391.0,1.29932235]
[1744868434751,0.013466,84392.0,84391.0,1.29872235]
[1744868437029,0.013466,84392.0,84391.0,1.27670085]
[1744868440370,0.013466,84392.0,84391.0,1.13678085]
[1744868440554,0.013466,84392.0,84391.0,1.27670085]
[1744868445059,0.013466,84392.0,84391.0,1.26216]
[1744868449833,0.013466,84392.0,84391.0,0.84336]
[1744868457128,0.013466,84392.0,84391.0,0.85790085]
[1744868462900,0.013466,84392.0,84391.0,0.87994897]
[1744868464443,0.013466,84392.0,84391.0,0.88821735]
[1744868466257,0.013466,84392.0,84391.0,0.87994897]
[1744868467137,0.013466,84392.0,84391.0,0.85790085]
[1744868467875,0.013466,84392.0,84391.0,0.86617193]
[1744868471224,0.013466,84392.0,84391.0,0.85790085]
[1744868471501,0.013466,84392.0,84391.0,0.86893403]
[1744868472457,0.013466,84392.0,84391.0,0.89927525]
[1744868473832,0.013466,84392.0,84391.0,0.94617525]
[1744868474743,0.00754484,84392.0,84391.0,0.94617525]
[1744868475312,0.00754484,84392.0,84391.0,0.99427525]
[1744868475913,0.00754484,84392.0,84391.0,0.99027525]
[1744868476117,0.00754484,84392.0,84391.0,0.98727525]
[1744868476317,0.00754484,84392.0,84391.0,0.98400037]
[1744868477014,0.00754484,84392.0,84391.0,0.98800037]
[1744868478178,0.00754484,84392.0,84391.0,0.98300037]
[1744868478338,0.00754484,84392.0,84391.0,1.40680037]
[1744868478719,1.003,84400.0,84399.0,0.64121048]
[1744868479042,1.02231794,84400.0,84399.0,1.20152473]
[1744868479239,1.02231794,84400.0,84399.0,1.24802473]
[1744868479559,1.02231794,84400.0,84399.0,1.25905791]
[1744868479957,1.02231794,84400.0,84399.0,1.26405791]
[1744868480414,1.02231794,84400.0,84399.0,1.26205791]
[1744868480913,1.02231794,84400.0,84399.0,1.26605791]
[1744868481139,1.02231794,84400.0,84399.0,1.26305791]
[1744868481649,1.02231794,84400.0,84399.0,1.26905791]
[1744868484460,1.02231794,84400.0,84399.0,1.41269791]
[1744868485657,1.02231794,84400.0,84399.0,1.31649791]
[1744868487535,1.02231794,84400.0,84399.0,1.30546473]
[1744868489175,1.02231794,84400.0,84399.0,1.31646177]
[1744868493216,1.02231794,84400.0,84399.0,1.41016177]
[1744868493217,1e-08,84400.0,84399.0,1.41016177]
[1744868493412,0.0138516,84400.0,84399.0,1.41016177]
[1744868493612,1e-08,84400.0,84399.0,1.41016177]
[1744868494037,1e-08,84400.0,84399.0,1.40616177]
[1744868494247,1e-08,84400.0,84399.0,1.40016177]
[1744868494596,1e-08,84400.0,84399.0,1.40816177]
[1744868494795,0.0004214,84406.0,84405.0,0.63929363]
[1744868495001,0.000491,84406.0,84405.0,1.17754154]
[1744868495210,0.000491,84406.0,84405.0,1.18853858]
[1744868495409,0.000491,84406.0,84405.0,1.21060492]
[1744868495810,0.0004212,84408.0,84406.0,0.35454085]
[1744868496071,1e-08,84408.0,84407.0,0.69108802]
[1744868496278,1e-08,84408.0,84407.0,0.83260227]
[1744868497240,1e-08,84408.0,84407.0,0.84359931]
[1744868497627,1e-08,84408.0,84407.0,0.85545428]
[1744868497827,1e-08,84408.0,84407.0,0.86245428]
[1744868498797,1e-08,84408.0,84407.0,0.86745428]
[1744868499813,1e-08,84408.0,84407.0,1.28625428]
[1744868509716,1e-08,84408.0,84407.0,1.18665428]
[1744868510140,1e-08,84408.0,84407.0,1.33025428]
[1744868512059,1e-08,84408.0,84407.0,1.18665428]
[1744868512250,1e-08,84408.0,84407.0,1.33025428]
[1744868512844,1e-08,84408.0,84407.0,1.32525428]
[1744868513084,1e-08,84408.0,84407.0,1.30318794]
[1744868514210,1e-08,84408.0,84407.0,1.29618794]
[1744868514407,1e-08,84408.0,84407.0,1.30118794]
[1744868514584,1e-08,84408.0,84407.0,1.30718794]
[1744868514784,1e-08,84408.0,84407.0,1.30218794]
[1744868515008,1e-08,84408.0,84407.0,1.2911909]
[1744868515197,1e-08,84408.0,84407.0,1.31719947]
[1744868516803,1e-08,84408.0,84407.0,1.2951909]
[1744868518424,1e-08,84408.0,84407.0,2.4034309]
[1744868521250,1e-08,84408.0,84407.0,2.2598309]
[1744868521434,1e-08,84408.0,84407.0,2.4030309]
[1744868522982,1e-08,84408.0,84407.0,2.38849005]
[1744868523381,1e-08,84408.0,84407.0,2.38249005]
[1744868523526,1e-08,84408.0,84407.0,2.38749005]
[1744868523732,1e-08,84408.0,84407.0,2.38349005]
[1744868524173,1e-08,84408.0,84407.0,2.38749005]
[1744868528173,1e-08,84408.0,84407.0,2.38349005]
[1744868528383,1e-08,84408.0,84407.0,2.37849005]
[1744868528579,1e-08,84408.0,84407.0,2.38549005]
[1744868536717,1e-08,84408.0,84407.0,1.27725005]
[1744868541230,1e-08,84408.0,84407.0,1.29926333]
[1744868541635,1e-08,84408.0,84407.0,1.31027078]
[1744868543899,1e-08,84408.0,84407.0,1.27725005]
[1744868549889,1e-08,84408.0,84407.0,1.15780214]
[1744868550232,1e-08,84408.0,84407.0,1.01460214]
[1744868550450,1e-08,84408.0,84407.0,1.15652214]
[1744868550853,1e-08,84408.0,84407.0,0.81652214]
[1744868553059,1e-08,84408.0,84407.0,0.56772]
[1744868553187,1e-08,84408.0,84407.0,0.80466717]
[1744868553399,0.01421145,84408.0,84407.0,0.56772]
[1744868554165,0.01421145,84408.0,84407.0,0.14892]
[1744868555707,0.06081145,84408.0,84407.0,0.14592]
[1744868555950,0.06081145,84408.0,84407.0,0.002]
[1744868556397,0.06081145,84408.0,84407.0,0.004]
[1744868556726,0.23694717,84407.0,84405.0,0.14192]
[1744868556925,0.01415791,84406.0,84405.0,0.14192]
[1744868558683,0.01415791,84406.0,84405.0,0.14292]
[1744868563998,0.01415791,84406.0,84405.0,0.001]
[1744868564638,0.01184722,84408.0,84405.0,0.001]
[1744868564845,0.01415791,84406.0,84405.0,0.001]
[1744868565188,0.25110788,84406.0,84405.0,0.001]
[1744868565386,0.01415791,84406.0,84405.0,0.001]
[1744868565601,0.24879422,84408.0,84403.0,0.01184792]
[1744868565805,0.01415791,84406.0,84403.0,0.01184792]
[1744868566023,0.02600719,84407.0,84403.0,0.01184792]
[1744868566300,0.01415598,84405.0,84403.0,0.01184792]
[1744868566513,0.01184735,84407.0,84403.0,0.01184792]
[1744868566829,1e-08,84408.0,84406.0,0.23694997]
[1744868569419,1e-08,84408.0,84406.0,0.23794997]
[1744868571543,1e-08,84408.0,84407.0,0.11944791]
[1744868572616,1e-08,84408.0,84407.0,0.13045276]
[1744868572815,1e-08,84408.0,84407.0,0.15346246]
[1744868574888,1e-08,84408.0,84407.0,0.29406246]
[1744868575108,1e-08,84408.0,84407.0,0.28305761]
[1744868577406,1e-08,84408.0,84407.0,0.29406038]
[1744868582554,1e-08,84408.0,84407.0,0.27205068]
[1744868582823,1e-08,84408.0,84407.0,0.15260277]
[1744868583263,1e-08,84408.0,84407.0,0.01200277]
[1744868583463,1e-08,84408.0,84407.0,0.15260277]
[1744868584242,1e-08,84408.0,84407.0,0.17459687]
[1744868586547,1e-08,84408.0,84407.0,0.29404478]
[1744868586813,1e-08,84408.0,84407.0,0.34274478]
[1744868588188,1e-08,84408.0,84407.0,0.34174478]
[1744868588608,1e-08,84408.0,84407.0,0.34474478]
[1744868589025,1e-08,84408.0,84407.0,0.29604478]
[1744868599523,1e-08,84408.0,84407.0,0.15544478]
[1744868599711,1e-08,84408.0,84407.0,0.29604478]
[1744868600118,1e-08,84408.0,84407.0,0.27405068]
[1744868601697,1e-08,84408.0,84407.0,0.28231353]
[1744868602228,1e-08,84408.0,84407.0,0.27131076]
[1744868602611,1e-08,84408.0,84407.0,0.26304791]
[1744868608367,0.01177169,84408.0,84407.0,0.26304791]
[1744868608570,1e-08,84408.0,84407.0,0.26240791]
[1744868609027,1e-08,84408.0,84407.0,0.26140791]
[1744868609872,1e-08,84408.0,84407.0,0.25940791]
[1744868610392,1e-08,84408.0,84407.0,0.26140791]
[1744868610608,1e-08,84408.0,84407.0,0.25940791]
[1744868611023,1e-08,84408.0,84407.0,0.26040791]
[1744868616005,1e-08,84408.0,84407.0,0.14096]
[1744868616639,0.01175907,84408.0,84407.0,0.14096]
[1744868616986,0.05875907,84408.0,84407.0,0.14096]
[1744868617188,0.10695907,84408.0,84407.0,0.14096]
[1744868618883,0.10695907,84408.0,84407.0,0.13996]
[1744868619276,0.10695907,84408.0,84407.0,0.14096]
[1744868619704,0.34390343,84408.0,84407.0,0.14096]
[1744868620340,0.34390343,84408.0,84407.0,0.001]
[1744868621318,0.46335134,84408.0,84407.0,0.001]
[1744868623175,0.80335134,84408.0,84407.0,0.001]
[1744868623364,0.82548733,84408.0,84407.0,0.001]
[1744868625906,0.01185129,84379.0,84376.0,0.02367919]
[1744868626064,0.01185129,84379.0,84377.0,0.13996]
[1744868626265,0.01150675,84378.0,84377.0,0.13996]
[1744868627251,0.01150675,84378.0,84377.0,0.14096]
[1744868627656,0.01150675,84378.0,84377.0,0.13996]
[1744868628057,0.05860675,84378.0,84377.0,0.13996]
[1744868628872,0.05860675,84378.0,84377.0,0.14096]
[1744868629639,0.05860675,84378.0,84377.0,0.001]
[1744868632472,0.29563535,84378.0,84377.0,0.001]
[1744868637094,0.41508326,84378.0,84377.0,0.001]
[1744868637477,0.43714696,84378.0,84377.0,0.001]
[1744868637851,0.43714696,84378.0,84376.0,0.0004523]
[1744868638171,0.41508326,84378.0,84376.0,0.0004523]
[1744868639044,0.11944791,84377.0,84376.0,0.0004523]
[1744868639327,0.13081341,84377.0,84376.0,0.0004523]
[1744868639830,0.0113655,84377.0,84376.0,0.0004523]
[1744868645290,0.03344855,84377.0,84376.0,0.0004523]
[1744868646450,0.03344855,84377.0,84376.0,0.23748652]
[1744868646649,0.02208305,84377.0,84376.0,0.0004523]
[1744868646850,0.00947376,84377.0,84376.0,0.0004523]
[1744868646996,0.01185129,84379.0,84376.0,0.0004523]
[1744868647197,0.00948343,84378.0,84376.0,0.0004523]
[1744868647397,0.24651262,84378.0,84376.0,0.0004523]
[1744868648091,0.00948343,84378.0,84376.0,0.23748594]
[1744868648293,0.01185114,84380.0,84376.0,0.24933765]
[1744868648495,0.00948922,84379.0,84376.0,0.24933765]
[1744868648617,0.02134051,84379.0,84376.0,0.0004523]
[1744868648821,0.2370286,84378.0,84376.0,0.0004523]
[1744868649263,0.00948922,84377.0,84376.0,0.0004523]
[1744868651283,0.03164894,84377.0,84376.0,0.0004523]
[1744868654745,0.03164894,84377.0,84376.0,0.46467528]
[1744868655102,0.02215972,84377.0,84376.0,0.21310021]
[1744868655314,0.02215972,84377.0,84376.0,0.0936523]
[1744868655492,0.00951656,84377.0,84376.0,0.0936523]
[1744868655686,0.23703141,84377.0,84376.0,0.0936523]
[1744868655887,0.00951656,84377.0,84376.0,0.0936523]
[1744868656135,0.01185129,84379.0,84376.0,0.0936523]
[1744868656344,0.00951656,84377.0,84376.0,0.0936523]
[1744868656545,0.01185129,84379.0,84376.0,0.0946523]
[1744868657045,0.00951463,84378.0,84376.0,0.0936523]
[1744868659627,0.01185114,84380.0,84376.0,0.10550401]
[1744868659833,0.00951463,84377.0,84376.0,0.10550401]
[1744868659986,0.01185114,84380.0,84376.0,0.10550401]